bitfinex/quotes_ETHUSD_20260310
["timestamp","ask_amount","ask_price","bid_price","bid_amount"]
[1773153306558,2.70622017,2032.7,2031.9,0.54764177]
[1773153306786,0.04921032,2032.6,2031.9,0.54764177]
[1773153306990,0.50052868,2032.6,2032.1,0.0011]
[1773153307197,0.45131836,2032.4,2032.1,0.0011]
[1773153307489,0.50052868,2032.3,2032.1,0.0011]
[1773153307657,0.50052868,2032.3,2031.8,0.0011]
[1773153307857,0.45131836,2031.8,2031.5,0.0011]
[1773153308175,0.45131836,2031.7,2030.8,1.23104195]
[1773153308369,1.025,2032.0,2030.7,1.23105545]
[1773153308370,2.87188719,2031.5,2030.7,1.23105545]
[1773153308886,2.87188719,2031.5,2030.8,0.04924167]
[1773153309087,1.23073893,2031.3,2030.8,1.28024773]
[1773153309396,0.45131836,2031.4,2030.8,0.04924167]
[1773153309397,1.68199706,2031.4,2030.8,0.04924167]
[1773153309582,2.42056883,2030.7,2030.1,1.09532738]
[1773153309781,0.45131836,2030.9,2029.9,1.23152845]
[1773153309989,2.42056883,2031.0,2029.8,1.23162735]
[1773153309990,2.87188719,2030.5,2029.8,1.23162735]
[1773153310174,0.45131836,2030.8,2029.8,1.23162735]
[1773153310377,0.45131836,2030.6,2029.8,1.23162735]
[1773153310565,3.44656883,2030.7,2029.2,0.49842675]
[1773153310566,2.87188719,2030.4,2029.2,0.49842675]
[1773153310899,0.45131836,2030.2,2029.4,1.23189119]
[1773153311215,1.23146643,2030.1,2029.4,1.23189119]
[1773153311366,0.45131836,2030.0,2029.2,1.23196649]
[1773153311560,1.47731836,2030.3,2029.2,1.23196649]
[1773153311790,0.45131836,2030.3,2029.3,0.49842675]
[1773153311996,1.68268464,2030.3,2029.3,0.49842675]
[1773153312206,0.45131836,2030.2,2029.3,0.49842675]
[1773153312507,0.45131836,2030.2,2029.2,1.23196649]
[1773153312508,0.45131836,2030.2,2029.2,1.73039324]
[1773153313009,2.42056883,2030.1,2029.2,1.23196649]
[1773153313164,0.45131836,2030.0,2029.1,0.49952675]
[1773153313371,1.68284676,2030.0,2029.1,0.0011]
[1773153313670,0.45131836,2030.0,2029.1,0.0011]
[1773153313869,1.2314161,2030.2,2029.1,0.49952675]
[1773153314082,1.2312519,2030.5,2029.2,2.42056883]
[1773153314375,2.70852581,2030.6,2029.3,0.49842675]
[1773153314891,2.70852581,2030.6,2029.5,0.49842675]
[1773153314892,2.70849479,2030.6,2029.5,0.49842675]
[1773153315279,2.70849479,2030.6,2029.6,1.2317698]
[1773153316398,0.45131836,2030.5,2029.6,1.2317698]
[1773153316696,0.45131836,2030.8,2029.7,0.49842675]
[1773153316900,1.47731836,2030.8,2029.7,0.49842675]
[1773153317309,2.70836886,2030.8,2029.8,1.23164843]
[1773153317509,2.70836886,2030.8,2029.8,1.73007518]
[1773153317510,1.68236578,2030.8,2029.8,1.73007518]
[1773153317713,1.68237858,2030.8,2029.8,1.73007518]
[1773153317871,0.45131836,2030.7,2029.8,1.73007518]
[1773153318067,0.45131836,2030.7,2029.9,0.02468434]
[1773153318312,0.45131836,2030.5,2029.8,1.23164843]
[1773153318615,1.29261231,2030.8,2029.8,1.73007518]
[1773153318616,0.45131836,2030.8,2029.8,1.73007518]
[1773153318810,1.68238301,2030.8,2029.8,1.73007518]
[1773153318994,1.74391491,2030.8,2029.8,1.73007518]
[1773153319371,0.45131836,2030.7,2029.8,1.73007518]
[1773153319581,0.06155816,2030.6,2029.9,0.0011]
[1773153319773,0.51287652,2030.6,2029.9,0.0011]
[1773153319996,2.87822786,2030.4,2029.9,0.0011]
[1773153320213,0.45131836,2030.3,2029.7,0.0011]
[1773153320375,2.87822786,2029.8,2029.4,0.0011]
[1773153320699,1.026,2030.2,2029.4,0.0011]
[1773153320700,0.45131836,2030.1,2029.4,0.0011]
[1773153321498,1.68283708,2030.1,2029.4,0.0011]
[1773153322402,0.45131836,2030.7,2029.6,0.49842675]
[1773153322589,0.06155816,2030.6,2029.7,0.02469708]
[1773153322908,0.06155816,2030.6,2029.7,0.52312383]
[1773153323113,0.06155816,2030.6,2029.7,0.49842675]
[1773153323574,0.06155816,2030.6,2029.8,1.23164843]
[1773153324105,0.45131836,2030.7,2029.9,0.02469223]
[1773153324302,1.52739757,2031.0,2030.0,0.49842675]
[1773153324503,1.07607921,2031.0,2030.0,0.49842675]
[1773153324703,1.07607921,2031.0,2030.2,0.49842675]
[1773153325001,0.06154906,2030.9,2030.2,0.49842675]
[1773153325369,0.06154906,2030.9,2029.8,1.23164843]
[1773153325370,0.51286742,2030.9,2029.8,1.23164843]
[1773153325574,2.30703046,2031.0,2029.9,0.5231117]
[1773153325798,2.30703046,2031.0,2030.0,1.23152709]
[1773153325982,2.30703046,2031.0,2030.0,1.72995384]
[1773153326183,1.07607921,2031.0,2030.0,1.72995384]
[1773153326385,0.06154906,2030.9,2030.0,1.72995384]
[1773153326691,0.06154906,2030.9,2030.0,1.23152709]
[1773153326692,0.51286742,2030.9,2030.0,1.23152709]
[1773153326893,0.51286742,2030.9,2029.7,4.92610837]
[1773153326894,0.45131836,2030.7,2029.7,1.23170911]
[1773153327103,2.87822786,2030.5,2029.7,1.23170911]
[1773153327306,0.06156422,2030.4,2029.7,1.23170911]
[1773153327504,4.73391948,2031.0,2029.8,0.02470072]
[1773153327505,0.45131836,2030.8,2029.8,0.02470072]
[1773153327803,2.10207921,2031.0,2029.9,1.23158776]
[1773153327976,2.10207921,2031.0,2030.0,0.52310563]
[1773153328176,0.06154906,2030.9,2030.0,0.52310563]
[1773153328406,3.33301432,2031.0,2030.0,0.52310563]
[1773153328707,2.10207921,2031.0,2030.0,0.52310563]
[1773153329100,0.06154906,2030.9,2030.0,0.52310563]
[1773153329298,0.06154906,2030.9,2030.0,0.49842675]
[1773153330005,0.06154906,2030.9,2030.2,1.23140577]
[1773153330973,1.29253747,2030.9,2030.2,1.23140577]
[1773153331206,2.4269095,2030.8,2029.9,1.23158776]
[1773153331407,0.45131836,2030.9,2029.9,1.23158776]
[1773153331712,0.06155209,2030.8,2029.9,1.23158776]
[1773153331889,1.68242093,2030.7,2029.8,4.92635105]
[1773153332091,0.06155816,2030.6,2029.8,4.92635105]
[1773153332399,0.06155816,2030.6,2029.9,0.01607113]
[1773153332605,2.3070487,2031.0,2029.9,0.01717113]
[1773153332808,0.06154906,2030.9,2029.9,0.49952675]
[1773153333011,0.001,2030.8,2029.9,0.49952675]
[1773153334086,0.001,2030.8,2030.0,1.23152709]
[1773153334880,0.001,2030.8,2030.1,0.02468009]
[1773153336209,0.001,2030.8,2030.2,1.23140577]
[1773153338011,0.001,2030.8,2030.3,0.02467281]
[1773153338311,0.001,2030.8,2030.4,1.23128447]
[1773153338828,0.98977571,2031.0,2030.5,0.47595892]
[1773153339104,0.03690293,2031.8,2030.8,0.47595892]
[1773153339309,3.78562427,2031.9,2030.8,0.47595892]
[1773153339683,0.03690293,2031.8,2030.8,0.47595892]
[1773153340216,0.47344671,2032.0,2030.8,0.47595892]
[1773153340423,3.78551394,2032.1,2031.0,0.47595892]
[1773153340713,0.03690293,2032.0,2031.0,0.47595892]
[1773153340919,0.03690293,2032.2,2031.1,1.45795892]
[1773153342108,0.03690293,2032.2,2031.2,0.47595892]
[1773153342488,0.03690293,2032.2,2031.3,1.23073893]
[1773153342693,1.26710793,2032.2,2031.3,1.23073893]
[1773153343013,0.47344671,2032.1,2031.3,1.23073893]
[1773153343317,0.03690293,2032.0,2031.3,1.23073893]
[1773153343692,0.03690293,2032.1,2031.3,1.23073893]
[1773153344394,0.03690293,2032.1,2031.2,4.92295574]
[1773153344703,1.23031496,2032.0,2031.2,4.92295574]
[1773153344908,0.03690293,2031.9,2031.2,4.92295574]
[1773153345324,0.03690293,2032.0,2031.2,5.39891466]
[1773153345537,0.03690293,2032.0,2031.2,4.92295574]
[1773153345823,0.51034964,2032.0,2031.0,1.23086012]
[1773153346331,0.47344671,2032.0,2031.0,1.23086012]
[1773153346526,1.23037551,2031.9,2031.0,1.28009694]
[1773153346840,0.03690293,2031.8,2031.0,1.28009694]
[1773153347130,1.23037551,2031.9,2031.0,1.28009694]
[1773153347327,0.03690293,2031.8,2031.0,1.28009694]
[1773153348556,0.001,2031.6,2031.0,1.28009694]
[1773153348717,0.001,2031.6,2031.0,1.23086012]
[1773153349533,0.03790293,2031.6,2031.0,1.23086012]
[1773153349699,0.48174794,2031.6,2031.0,1.23086012]
[1773153350030,0.51765087,2031.5,2030.7,1.23110257]
[1773153350220,0.51765087,2031.5,2030.8,0.04924167]
[1773153350614,1.23067834,2031.4,2030.8,1.28024021]
[1773153350813,1.23067834,2031.4,2030.5,0.983]
[1773153350814,0.03690293,2031.3,2030.6,0.04924652]
[1773153351438,0.03690293,2031.3,2030.5,1.23122383]
[1773153351439,0.51765087,2031.3,2030.5,1.23122383]
[1773153352256,0.51765087,2031.3,2030.2,5.4125212]
[1773153352458,0.51765087,2031.3,2030.3,0.53638988]
[1773153352757,0.48074794,2031.2,2030.4,1.23128447]
[1773153353953,0.48074794,2031.2,2030.2,4.92538048]
[1773153354539,1.50274794,2031.1,2030.2,4.92538048]
[1773153354949,1.71165237,2031.1,2030.3,0.0492538]
[1773153355150,0.48074794,2031.1,2030.2,0.53639231]
[1773153355357,2.25284881,2031.2,2030.2,0.53639231]
[1773153355568,1.022,2031.2,2030.2,0.53639231]
[1773153355879,2.25280173,2031.2,2030.2,0.53639231]
[1773153356027,1.022,2031.2,2030.2,0.53639231]
[1773153356627,1.05890293,2031.2,2030.2,0.53639231]
[1773153356867,1.022,2031.2,2030.2,0.53639231]
[1773153357182,1.022,2031.2,2030.4,0.48713608]
[1773153357966,0.03690293,2031.1,2030.4,0.48713608]
[1773153358149,1.022,2031.2,2030.4,0.48713608]
[1773153358462,1.23157895,2031.6,2030.6,0.48713608]
[1773153358680,0.03690293,2031.5,2030.6,0.48713608]
[1773153359035,0.03690293,2031.5,2030.7,1.23110257]
[1773153359235,0.001,2031.6,2030.8,0.53637775]
[1773153359767,1.26846118,2031.6,2030.8,0.48713608]
[1773153359940,1.74920912,2031.6,2030.7,1.23110257]
[1773153360147,0.03790293,2031.6,2030.8,0.53049121]
[1773153360347,0.001,2031.6,2030.8,0.53049121]
[1773153361181,0.001,2031.6,2030.9,1.23098133]
[1773153361334,0.48174794,2031.6,2030.9,1.23098133]
[1773153361535,0.03690293,2031.5,2030.9,1.23098133]
[1773153361857,0.03690293,2031.5,2030.9,1.28022058]
[1773153362438,0.03690293,2031.5,2030.9,1.76735666]
[1773153362647,0.001,2031.6,2030.9,1.76735666]
[1773153362866,0.03790293,2031.6,2030.9,1.76735666]
[1773153363074,0.03790293,2031.6,2030.9,1.28022058]
[1773153363440,0.001,2031.6,2030.9,1.23098133]
[1773153363638,0.03790293,2031.6,2030.9,1.76108042]
[1773153363844,0.03690293,2031.5,2030.9,1.76108042]
[1773153364187,0.001,2031.6,2030.9,1.76108042]
[1773153364386,0.03790293,2031.6,2030.9,1.76108042]
[1773153365175,0.03790293,2031.6,2030.9,1.28022058]
[1773153365379,0.53321536,2031.6,2031.1,0.0011]
[1773153365890,0.001,2031.6,2031.1,0.0011]
[1773153366098,0.001,2031.6,2031.1,0.48195984]
[1773153366598,0.001,2031.6,2031.1,0.0011]
[1773153366792,0.001,2031.6,2031.1,0.48195984]
[1773153367422,1.26726962,2032.0,2031.3,0.48085984]
[1773153367423,0.03690293,2032.0,2031.3,0.48085984]
[1773153367696,0.03690293,2032.3,2031.4,0.48085984]
[1773153369360,1.26704427,2032.3,2031.5,1.71147761]
[1773153369568,0.03690293,2032.3,2031.5,1.71147761]
[1773153371713,0.03690293,2032.4,2031.7,0.48085984]
[1773153372074,0.03690293,2032.6,2031.7,0.48085984]
[1773153372669,0.33709121,2032.7,2031.9,2.4269095]
[1773153372913,0.33709121,2032.7,2031.6,4.853819]
[1773153372914,0.33709121,2032.7,2032.0,0.48085984]
[1773153373600,0.33709121,2032.7,2032.1,1.23025441]
[1773153373975,0.53221536,2032.6,2031.8,1.23043606]
[1773153374176,0.49531243,2032.5,2031.5,1.23061777]
[1773153374374,0.49531243,2032.3,2031.5,1.23061777]
[1773153374574,0.03690293,2032.2,2031.6,0.53008212]
[1773153374887,0.03690293,2032.5,2031.6,0.53008212]
[1773153375289,0.53221536,2032.5,2031.6,0.53008212]
[1773153375616,0.53221536,2032.5,2031.7,1.23049662]
[1773153375617,0.49531243,2032.3,2031.7,1.23049662]
[1773153375912,0.49531243,2032.6,2031.8,0.48085984]
[1773153376285,0.03690293,2032.5,2031.8,0.48085984]
[1773153376669,0.53221536,2032.5,2031.7,1.23049662]
[1773153377102,0.03690293,2032.5,2031.8,0.53007728]
[1773153377722,0.03690293,2032.5,2031.6,4.92198651]
[1773153377723,0.49531243,2032.4,2031.6,4.92221246]
[1773153377920,0.03690293,2032.3,2031.7,0.04921986]
[1773153379132,0.03690293,2032.3,2031.7,0.5300797]
[1773153379438,1.26792084,2032.5,2031.7,0.5300797]
[1773153379616,1.26792084,2032.5,2031.8,1.23043606]
[1773153379820,1.26792084,2032.5,2031.9,0.04921502]
[1773153380125,0.03790293,2032.5,2031.9,0.04921502]
[1773153380431,1.26791583,2032.5,2031.8,1.23043606]
[1773153380631,1.76322826,2032.5,2031.8,1.23043606]
[1773153381104,0.53321536,2032.5,2031.8,1.23043606]
[1773153381437,0.49531243,2032.4,2031.8,1.23043606]
[1773153381742,1.26791562,2032.5,2031.9,0.48085984]
[1773153381743,0.001,2032.5,2031.9,0.48085984]
[1773153381895,1.7263438,2032.5,2031.8,1.23043606]
[1773153382089,0.03690293,2032.4,2031.8,1.2796535]
[1773153382293,0.001,2032.5,2031.9,0.48085984]
[1773153382490,0.001,2032.5,2032.0,0.04921259]
[1773153382690,0.001,2032.5,2032.0,0.04125103]
[1773153382890,1.23102251,2032.5,2032.0,0.04125103]
[1773153383139,0.001,2032.5,2032.0,0.04125103]
[1773153383853,0.37399414,2032.7,2032.3,0.48085984]
[1773153384030,2.7417621,2033.5,2032.4,0.48085984]
[1773153384348,0.03690293,2033.4,2032.4,0.48085984]
[1773153385639,1.22952835,2033.3,2032.6,0.48085984]
[1773153385804,0.03690293,2033.2,2032.6,0.48085984]
[1773153386129,0.37399414,2033.2,2032.5,1.2300123]
[1773153386300,0.33709121,2033.1,2032.5,1.2300123]
[1773153386501,0.33709121,2033.1,2032.3,0.48085984]
[1773153386502,0.03690293,2033.0,2032.3,1.71094969]
[1773153386806,0.37399414,2033.0,2032.3,1.71096909]
[1773153387008,0.37399414,2033.0,2032.2,1.23014645]
[1773153387414,0.86930657,2033.0,2032.2,1.23014645]
[1773153387922,4.14781788,2032.9,2032.1,1.23025441]
[1773153388235,1.7250827,2032.9,2032.1,1.23025441]
[1773153388595,1.7250827,2032.9,2032.1,1.27946458]
[1773153388801,0.03690293,2032.8,2032.1,1.27946458]
[1773153389209,0.83240364,2032.7,2032.1,1.23025441]
[1773153389409,0.83240364,2032.7,2031.7,5.40268231]
[1773153389410,0.03690293,2032.6,2031.7,5.40268231]
[1773153389608,0.37399414,2032.6,2031.8,0.04921744]
[1773153390009,1.2300123,2032.5,2031.9,1.23037551]
[1773153390226,0.03690293,2032.4,2031.9,1.23037551]
[1773153390610,0.33709121,2032.3,2031.9,1.23037551]
[1773153390823,0.33709121,2032.3,2031.8,4.97071948]
[1773153390824,0.33709121,2032.3,2031.2,4.92280162]
[1773153391007,0.33709121,2032.2,2031.8,0.0011]
[1773153391332,0.83240364,2032.2,2031.8,0.0011]
[1773153391507,0.83240364,2032.2,2031.5,0.0011]
[1773153391702,0.33709121,2032.1,2031.5,0.0011]
[1773153391931,1.23031496,2032.0,2031.5,1.28089672]
[1773153392237,1.5673907,2032.1,2031.5,1.28090989]
[1773153392528,0.33709121,2032.0,2031.5,1.23171265]
[1773153393114,0.33709121,2032.0,2031.5,0.0011]
[1773153393324,0.83240364,2032.0,2031.5,0.0011]
[1773153394036,1.23037551,2031.9,2031.5,0.0011]
[1773153394403,1.70661411,2031.9,2031.5,0.0011]
[1773153394731,0.4762386,2031.8,2031.1,0.0011]
[1773153394940,1.016,2031.7,2031.1,0.0011]
[1773153395150,0.4762386,2031.6,2031.1,0.0011]
[1773153395348,0.33709121,2031.5,2031.1,0.0011]
[1773153396139,1.23067834,2031.4,2031.1,0.0011]
[1773153396452,4.12965212,2031.4,2030.9,0.0011]
[1773153396607,0.81332981,2031.3,2030.6,1.23225004]
[1773153397444,0.81332981,2031.3,2030.6,0.0011]
[1773153397736,0.81332981,2031.3,2030.6,1.23226092]
[1773153398133,0.81332981,2031.3,2030.6,0.0011]
[1773153398333,1.23061777,2031.5,2030.6,0.48311819]
[1773153398522,1.56770898,2031.5,2030.7,0.48201819]
[1773153399128,0.33709121,2031.5,2030.7,0.48201819]
[1773153399327,1.23034584,2032.0,2030.8,0.53125986]
[1773153399507,0.03690293,2031.9,2031.0,0.48201819]
[1773153399707,0.03690293,2032.0,2031.2,0.48201819]
[1773153399908,0.37399414,2032.0,2031.2,0.48201819]
[1773153400130,1.23043606,2031.8,2031.0,1.23092072]
[1773153400333,0.37399414,2031.7,2031.0,1.23092072]
[1773153400640,0.37399414,2031.7,2030.9,1.71295841]
[1773153400641,1.39099414,2031.7,2030.9,1.71295841]
[1773153400824,0.33709121,2031.6,2030.9,1.71295841]
[1773153401338,1.05390293,2031.7,2031.0,0.53125501]
[1773153401339,0.33709121,2031.5,2031.0,0.53125501]
[1773153401741,0.03690293,2031.8,2031.0,0.53125501]
[1773153401941,0.03690293,2031.8,2031.1,0.48201819]
[1773153401942,0.37399414,2031.8,2031.1,0.48201819]
[1773153402245,2.24715876,2032.3,2031.4,1.71269653]
[1773153402445,2.24715876,2032.3,2031.4,1.76192366]
[1773153402649,0.37399414,2032.2,2031.4,1.76192366]
[1773153402858,0.37399414,2032.2,2031.5,0.48201819]
[1773153404347,0.33709121,2032.1,2031.6,1.23055719]
[1773153404655,0.03690293,2032.0,2031.6,1.23055719]
[1773153404807,0.001,2031.8,2031.6,1.23055719]
[1773153405013,0.001,2031.8,2031.2,1.71275712]
[1773153405244,0.33709121,2031.7,2031.3,0.04922955]
[1773153406136,0.33709121,2031.7,2031.2,1.71275712]
[1773153406713,0.33709121,2031.7,2031.3,0.47058942]
[1773153408027,0.03690293,2032.1,2031.3,0.47058942]
[1773153408338,1.26716459,2032.1,2031.4,1.23067834]
[1773153409258,0.03690293,2032.1,2031.4,1.70126776]
[1773153409760,1.26717176,2032.1,2031.4,1.70126776]
[1773153409963,1.26717176,2032.1,2031.4,1.23067834]
[1773153409964,1.72444567,2032.1,2031.4,1.23067834]
[1773153410171,0.45727391,2031.8,2031.1,0.0011]
[1773153410457,1.23055719,2031.6,2031.1,0.0011]
[1773153410655,0.03690293,2031.5,2031.1,0.0011]
[1773153411116,1.23055719,2031.6,2031.1,0.0011]
[1773153411625,0.03690293,2031.5,2031.1,0.0011]
[1773153412237,1.23046199,2031.8,2031.1,0.47168942]
[1773153412437,0.03690293,2031.7,2031.2,1.23076412]
[1773153412633,0.03690293,2031.7,2031.2,1.2799961]
[1773153412839,0.03690293,2031.7,2031.2,0.04923198]
[1773153413038,0.45727391,2031.6,2031.1,0.0011]
[1773153413359,0.45727391,2031.6,2031.1,1.23195389]
[1773153413934,1.47527391,2031.6,2031.1,0.0011]
[1773153414141,2.88000909,2031.4,2030.9,0.0011]
[1773153414461,0.03690293,2031.7,2030.9,0.47168942]
[1773153414462,2.28542329,2031.7,2030.9,0.47168942]
[1773153414763,2.28542329,2031.7,2030.9,0.52092867]
[1773153414961,2.88000909,2031.6,2030.9,0.05033925]
[1773153415371,2.2485055,2031.7,2030.9,0.52092867]
[1773153415862,2.28540843,2031.7,2030.9,0.52092867]
[1773153416165,4.70814361,2031.7,2030.9,0.0011]
[1773153416369,5.16541752,2031.7,2030.9,0.0011]
[1773153417744,0.45727391,2031.6,2030.9,0.0011]
[1773153418046,0.49417684,2031.5,2030.9,0.0011]
[1773153418454,1.23067834,2031.4,2030.9,0.0011]
[1773153418661,1.23067834,2031.4,2031.1,0.0011]
[1773153420378,1.68795225,2031.4,2030.9,0.0011]
[1773153420564,0.49417684,2031.3,2030.9,0.0011]
[1773153421442,0.49417684,2031.3,2030.6,0.0011]
[1773153421641,0.45727391,2031.3,2030.6,0.0011]
[1773153422654,0.001,2031.6,2030.6,0.47168942]
[1773153422840,0.001,2031.6,2030.8,0.47058942]
[1773153423169,0.001,2031.6,2031.0,0.47058942]
[1773153423377,0.001,2031.6,2031.2,0.47058942]
[1773153423575,0.03690293,2032.0,2031.2,0.47208403]
[1773153423782,1.23010353,2032.4,2031.4,0.47208403]
[1773153424080,0.46799045,2032.3,2031.4,0.47208403]
[1773153424267,0.43108752,2032.2,2031.4,0.47208403]
[1773153424444,0.03690293,2032.1,2031.5,1.23061777]
[1773153424651,0.43125228,2032.0,2031.4,1.70273769]
[1773153424853,0.46804918,2031.9,2031.1,0.47208403]
[1773153425171,0.43114625,2031.8,2031.1,0.47208403]
[1773153425344,1.016,2032.0,2031.1,0.47208403]
[1773153425544,0.43129807,2031.9,2031.1,0.47208403]
[1773153425781,0.48792818,2032.5,2031.2,2.42273518]
[1773153425950,2.24707282,2032.4,2031.3,0.47208403]
[1773153426146,0.03690293,2032.3,2031.3,0.47208403]
[1773153426548,1.23018909,2032.3,2031.5,0.47208403]
[1773153426747,1.26709202,2032.3,2031.5,0.47208403]
[1773153428767,1.26709202,2032.3,2031.5,1.70264635]
[1773153428966,0.48792818,2032.1,2031.3,1.23070051]
[1773153429176,0.03690293,2032.0,2031.3,1.23070051]
[1773153429580,0.03690293,2032.0,2031.2,1.23075215]
[1773153429880,0.03690293,2032.0,2031.3,0.47208403]
[1773153430182,0.40857051,2032.1,2031.2,1.23075215]
[1773153430477,0.44547344,2032.0,2031.0,0.47208403]
[1773153430664,1.23049662,2031.7,2030.8,5.39718866]
[1773153430871,0.03690293,2031.6,2030.9,0.04923925]
[1773153431070,0.03690293,2031.6,2030.8,1.70422598]
[1773153431254,1.42757051,2031.5,2030.8,0.0011]
[1773153431451,0.40857051,2031.3,2030.6,0.0011]
[1773153432755,1.23079952,2031.2,2030.6,0.0011]
[1773153433458,1.02,2031.1,2030.6,0.0011]
[1773153433663,0.03690293,2031.3,2030.6,0.47318403]
[1773153434055,5.94267536,2031.5,2030.7,0.04924409]
[1773153434250,0.03690293,2031.4,2030.7,0.52132812]
[1773153434482,0.03690293,2031.3,2030.7,0.47208403]
[1773153434790,0.03690293,2031.4,2030.7,0.47208403]
[1773153435155,1.23043606,2031.8,2030.9,0.47208403]
[1773153435457,0.03690293,2031.7,2030.9,0.47208403]
[1773153435788,0.03690293,2031.6,2031.0,0.52132085]
[1773153436105,0.03690293,2031.7,2031.0,0.52132085]
[1773153437053,1.23055719,2031.6,2031.0,0.52132085]
[1773153437294,0.03690293,2031.5,2031.1,1.23086012]
[1773153437854,1.23050184,2031.7,2031.1,1.23086012]
[1773153438194,0.03690293,2031.6,2031.0,0.52132085]
[1773153438349,2.83020569,2031.5,2030.6,0.0011]
[1773153438553,0.03690293,2031.4,2030.6,1.23223724]
[1773153438754,1.021,2031.3,2030.6,0.0011]
[1773153439195,1.23079952,2031.2,2030.6,0.0011]
[1773153439784,2.83374423,2031.1,2030.6,0.0011]
[1773153440001,1.23079952,2031.2,2030.6,0.0011]
[1773153440160,1.26770245,2031.2,2030.6,0.0011]
[1773153441578,1.022,2031.1,2030.6,0.0011]
[1773153441962,0.03690293,2031.0,2030.6,0.0011]
[1773153443090,0.03690293,2031.0,2030.8,0.0011]
[1773153443882,1.23098133,2030.9,2030.8,0.0011]
[1773153444988,2.29087085,2031.0,2030.8,0.0011]
[1773153445194,2.29087085,2031.0,2030.5,0.0011]
[1773153445195,4.71714457,2031.0,2030.5,0.0011]
[1773153445767,2.29087085,2031.0,2030.5,0.0011]
[1773153446068,1.023,2030.9,2030.5,0.47318403]
[1773153446268,0.03690293,2030.8,2030.5,0.47318403]
[1773153446968,0.03690293,2030.9,2030.5,0.47318403]
[1773153447493,0.03690293,2030.9,2030.5,0.0011]
[1773153449491,1.26788768,2030.9,2030.5,0.0011]
[1773153449998,0.03690293,2030.9,2030.5,0.0011]
[1773153450195,1.26788624,2030.9,2030.5,0.0011]
[1773153450498,0.03690293,2030.9,2030.5,0.0011]
[1773153450709,0.03690293,2030.9,2030.5,0.47318403]
[1773153451021,0.001,2031.3,2030.6,0.04924651]
[1773153451308,0.001,2031.3,2030.7,0.47208403]
[1773153451471,0.001,2031.3,2030.9,0.47208403]
[1773153451668,1.23048015,2031.8,2031.0,0.47208403]
[1773153451890,2.25648015,2031.8,2031.0,0.47208403]
[1773153452100,0.03690293,2031.7,2031.0,0.47208403]
[1773153452311,1.026,2031.8,2031.0,0.47208403]
[1773153452520,0.03690293,2031.7,2031.0,0.47208403]
[1773153452702,1.026,2031.8,2031.0,0.47208403]
[1773153453010,0.03690293,2031.7,2031.0,0.47208403]
[1773153453905,0.03690293,2031.7,2031.1,1.23086012]
[1773153454090,1.26743627,2031.7,2031.1,1.23086012]
[1773153454296,1.72862691,2031.7,2031.1,1.23086012]
[1773153454487,1.72862691,2031.7,2031.2,0.45391003]
[1773153454488,0.03690293,2031.7,2031.2,0.45391003]
[1773153454809,0.03690293,2031.8,2031.2,0.45391003]
[1773153454987,0.03690293,2031.8,2031.1,1.23086012]
[1773153454988,0.42601389,2031.7,2031.0,1.23089034]
[1773153455195,0.03690293,2031.6,2031.0,1.23089034]
[1773153455511,0.46119064,2031.8,2031.0,1.23089034]
[1773153455512,0.49809357,2031.7,2031.0,1.23089034]
[1773153455810,0.4260564,2031.6,2031.0,1.23089034]
[1773153456114,0.49809357,2031.7,2030.8,0.45391003]
[1773153456115,1.69169112,2031.7,2030.8,0.45391003]
[1773153456411,0.92441456,2031.6,2030.8,0.45391003]
[1773153456603,0.92441456,2031.6,2031.0,0.0011]
[1773153456604,0.88753331,2031.5,2031.0,0.0011]
[1773153456800,0.03690293,2031.4,2031.0,0.0011]
[1773153457806,0.88774972,2031.3,2030.8,0.0011]
[1773153458009,1.23086012,2031.1,2030.8,0.0011]
[1773153458215,0.001,2031.6,2030.8,0.45501003]
[1773153458383,0.42669224,2031.5,2030.8,0.45501003]
[1773153458584,0.42669224,2031.4,2030.8,0.45501003]
[1773153459637,0.42669224,2031.4,2030.8,0.0011]
[1773153459638,0.03690293,2031.3,2030.8,0.0011]
[1773153459807,0.42669224,2031.4,2030.8,0.45501003]
[1773153459808,0.03690293,2031.4,2030.8,0.45501003]
[1773153459982,0.42692295,2031.3,2030.8,1.68600435]
[1773153460188,0.03690293,2031.4,2030.8,0.0011]
[1773153460189,0.03690293,2031.2,2030.8,0.0011]
[1773153460388,0.42707203,2031.1,2030.8,0.0011]
[1773153460604,0.03690293,2031.0,2030.8,0.0011]
[1773153460917,0.42701096,2030.9,2030.5,0.0011]
[1773153461216,0.42701096,2030.8,2030.5,0.0011]
[1773153461513,0.49809357,2031.0,2030.5,0.0011]
[1773153461705,0.42692627,2030.9,2030.5,0.0011]
[1773153461908,0.42692627,2030.8,2030.5,0.0011]
[1773153462114,0.42692627,2030.8,2030.3,4.92647715]
[1773153462115,0.42688931,2030.7,2030.3,0.0011]
[1773153462309,0.42688931,2030.6,2030.3,0.0011]
[1773153462506,0.42688931,2030.5,2030.3,0.0011]
[1773153462704,0.46119064,2030.7,2030.3,0.0011]
[1773153462899,0.42676403,2030.6,2030.3,0.0011]
[1773153463092,0.42676403,2030.5,2030.3,0.0011]
[1773153463311,1.028,2031.1,2030.3,0.0011]
[1773153463502,0.46364756,2031.0,2030.3,0.0011]
[1773153463699,0.46119064,2030.8,2030.3,0.0011]
[1773153463892,0.42674463,2030.7,2030.3,0.0011]
[1773153464207,1.69225143,2030.8,2030.3,0.0011]
[1773153466686,0.48955882,2030.7,2030.1,0.0011]
[1773153468218,1.2311632,2030.6,2030.1,0.0011]
[1773153468626,3.45527372,2030.9,2030.1,0.0011]
[1773153468800,1.72057703,2030.9,2030.1,0.0011]
[1773153469124,2.75057703,2030.9,2030.1,0.0011]
[1773153469426,2.75057703,2030.9,2030.3,0.0011]
[1773153469723,0.03690293,2030.8,2030.3,0.0011]
[1773153470226,2.75057703,2030.9,2030.3,0.0011]
[1773153470522,1.26799253,2030.8,2030.3,0.0011]
[1773153470712,1.031,2031.2,2030.3,0.0503538]
[1773153470916,1.031,2031.2,2030.3,0.52214183]
[1773153470917,1.52055882,2031.2,2030.3,0.52214183]
[1773153471343,0.03690293,2031.1,2030.3,0.52214183]
[1773153471838,2.91583254,2031.0,2030.3,0.0011]
[1773153472006,0.03690293,2030.9,2030.3,0.0011]
[1773153472913,1.26792849,2030.9,2030.3,0.0011]
[1773153473736,1.23102556,2030.9,2030.3,0.0011]
[1773153473904,0.48955882,2031.0,2030.3,0.0503538]
[1773153474104,0.03690293,2030.9,2030.3,0.0011]
[1773153475331,1.23104195,2030.8,2030.3,0.0011]
[1773153475507,0.03690293,2030.7,2030.3,0.0011]
[1773153478435,1.75760606,2030.7,2030.3,0.0011]
[1773153479132,0.03690293,2030.7,2030.3,0.0011]
[1773153479641,0.49055882,2031.6,2030.7,0.47178803]
[1773153479935,0.48955882,2031.4,2030.5,0.47178803]
[1773153480110,2.46317665,2031.5,2030.5,0.47178803]
[1773153480111,0.03690293,2031.5,2030.5,0.47178803]